Cogmind - Beta 15 *** ADVENTURER MODE // 2025.09.16 @ 10:02:48 Player: Kayla Solace Result: Self-destructed Performance ------------- Evolutions (1) 500 Regions Visited (2) 400 Robots Destroyed (13) 65 Value Destroyed (265) 265 Prototype IDs (0) 0 Alien Tech Used (0) 0 Bonus (0) 0 TOTAL SCORE: 1230 Bonus ------- None Cogmind --------- Core Integrity 386/400 Matter 242/300 Energy 34/125 System Corruption 0% Temperature Warning (373) Movement Rolling (80) Location -9/Materials Parts ------- > --- POWER (1) -------- Light Ion Engine > --- PROPULSION (2) --- Wheel Wheel > --- UTILITY (3) ------ Small Storage Unit Sensor Array Improved Targeting Computer > --- WEAPON (3) ------- Particle Gun Light EM Pulse Cannon Light Cannon > --- INVENTORY (8) ---- Ion Engine Wheel Compact Wheel Cooling System Large Matter Pod (150) Weight Redist. System Medium Laser Peak State ------------ > --- POWER ------------ Light Ion Engine > --- PROPULSION ------- Wheel Wheel > --- UTILITY ---------- Small Storage Unit Sensor Array Improved Targeting Computer > --- WEAPON ----------- Particle Gun Light EM Pulse Cannon Light Cannon > --- INVENTORY -------- Ion Engine Wheel Compact Wheel Cooling System Large Matter Pod Weight Redist. System [Rating: 12] Favorites ----------- Power Light Ion Engine Engine Light Ion Engine Propulsion Wheel Wheel Wheel Utility Small Storage Unit Device Sensor Array Storage Small Storage Unit Processor Improved Targeting Computer Weapon Medium Laser Energy Gun Medium Laser Energy Cannon Light EM Pulse Cannon Ballistic Gun Light Assault Rifle Ballistic Cannon Light Cannon Build | -11 -10 -9 ------- Run | Yrd Mat Mat Slots Evolved 2 | . . 2 Power . | . . . Propulsion . | . . . Utility 1 | . . 1 Weapon 1 | . . 1 Parts Attached 14 | 6 2 6 Power 1 | 1 . . Engine 1 | 1 . . Core . | . . . Reactor . | . . . Propulsion 3 | 2 . 1 Treads . | . . . Leg . | . . . Wheel 3 | 2 . 1 Hover . | . . . Flight . | . . . Utility 5 | 1 1 3 Device 3 | . 1 2 Storage 1 | 1 . . Processor 1 | . . 1 Hackware . | . . . Protection . | . . . Artifact . | . . . Weapon 5 | 2 1 2 Energy Gun 2 | 1 . 1 Energy Cannon 1 | . . 1 Ballistic Gun 1 | 1 . . Ballistic Cannon 1 | . 1 . Launcher . | . . . Special Weapon . | . . . Impact Weapon . | . . . Slashing Weapon . | . . . Piercing Weapon . | . . . Special Melee Weapon . | . . . Unidentified Prototypes . | . . . Parts Lost . | . . . Power . | . . . Propulsion . | . . . Utility . | . . . Weapon . | . . . Highest Loss Streak . | . . . To Critical Strikes . | . . . Average Backups 3 | . 2 6 Power . | . 1 1 Propulsion 1 | . 1 2 Utility 1 | . . 2 Weapon . | . . . Tool/Special . | . . . Unused Backups 3 | . . 3 Power 1 | . . 1 Propulsion 1 | . . 1 Utility 1 | . . 1 Weapon . | . . . Tool/Special . | . . . Average Slot Usage (%) 91 | . 88 96 Engine 12 | . 14 11 Wheel 25 | . 27 22 Device 7 | . 4 13 Storage 12 | . 14 11 Processor 3 | . . 7 Energy Gun 13 | . 14 12 Energy Cannon 2 | . . 6 Ballistic Gun 6 | . 10 . Ballistic Cannon 6 | . 3 11 Peak Build Rating 12 | 6 7 12 Average Rating 7 | 4 6 11 On Entrance 4 | . 6 7 Naked Turns . | . . . Heaviest Build 19 | 11 14 19 Greatest Support 26 | 26 26 26 Greatest Overweight (x) . | . . . Average Overweight (x) . | . . . Largest Inventory Capacity 8 | 8 8 8 Average Capacity 7 | 6 8 8 Most Carried 7 | 5 5 7 Average Carried 4 | 1 2 6 Final Capacity 8 | 8 8 8 Final Carried 7 | 1 4 7 Class Distribution -------------------- 71% | Mutant 28% | Gunner Dominant Class ---------------- Mutant | -10/Materials Gunner | -9/Materials Resources | -11 -10 -9 ----------- Run | Yrd Mat Mat Matter Collected 514 | 160 278 76 Remotely . | . . . Salvage Created 295 | . 183 112 Parts 21 | . 13 8 Haulers Intercepted . | . . . Recyclers Shooed 1 | . 1 . Parts Field Recycled . | . . . Retrieved Matter . | . . . Parts Self-Destructed . | . . . Prevented . | . . . Kills | -11 -10 -9 ------- Run | Yrd Mat Mat Combat Hostiles Destroyed 10 | . 5 5 Guns 7 | . 5 2 Cannons 3 | . . 3 Classes Destroyed 4 | . 4 . Worker 1 | . 1 . Watcher 2 | . 1 1 Swarmer 6 | . 3 3 Grunt 4 | . 2 2 Best Kill Streak 4 | . 4 2 Combat Bots Only 3 | . 3 2 Max Kills in Single Turn 2 | . 1 2 Gunslinging . | . . . Exploded . | . . . Melee . | . . . Uniques/NPCs Destroyed . | . . . Combat | -11 -10 -9 -------- Run | Yrd Mat Mat Hostile Shots Fired 60 | . 39 21 Missed 15 | . 12 3 Hits 45 | . 27 18 Projectile 45 | . 27 18 Critical Strikes 3 | . 2 1 Damage Taken 357 | . 215 142 Core 86 | . 72 14 Absorbed by Shields . | . . . Ignored by Resistances 109 | . 67 42 Regen/Repaired (Parts) 66 | . 14 52 Core Remaining (%) 85 | 100 71 . Volleys Fired 29 | . 18 11 Largest 3 | . 2 3 Hottest 151 | . 70 151 Shots Fired 64 | . 36 28 Gun 42 | . 36 6 Cannon 22 | . . 22 Launcher . | . . . Special . | . . . Kinetic 29 | . 18 11 Thermal 24 | . 18 6 Explosive . | . . . Electromagnetic 11 | . . 11 Robot Hit Streak 16 | . 16 11 Robot Miss Streak 3 | . 2 3 Penetration Max . | . . . Secondary Targets . | . . . Shots Hit Robots 47 | . 26 21 Core Hits 22 | . 14 8 Critical Kills . | . . . Critical Parts Destroyed . | . . . Critical Strikes 2 | . 1 1 Burn 2 | . 1 1 Melee Attacks . | . . . Impact . | . . . Slashing . | . . . Piercing . | . . . Sneak Attacks . | . . . Combat Hostiles . | . . . Follow-up Attacks . | . . . Damage Inflicted 674 | . 289 385 Guns 369 | . 289 80 Cannons 279 | . . 279 Explosions 26 | . . 26 Melee . | . . . Ramming . | . . . Kinetic 256 | . 113 143 Thermal 282 | . 176 106 Explosive . | . . . Electromagnetic 136 | . . 136 Impact . | . . . Slashing . | . . . Piercing . | . . . Highest Corruption . | . . . Average Corruption . | . . . Corruption Purged . | . . . Corruption Blocked . | . . . Overload Shots . | . . . Overflow Damage . | . . . Projectiles . | . . . Explosions . | . . . Melee . | . . . Knockbacks . | . . . Impact . | . . . Kinetic . | . . . Secondary . | . . . Self-Inflicted Damage . | . . . Shots . | . . . Rammed . | . . . Targets Rammed . | . . . Kicked . | . . . Crushed . | . . . Highest Temperature 373 | . 275 373 Average Temperature 104 | . 102 108 Received Heat Transfer 195 | . 123 72 Siege Activations . | . . . Martial Activations . | . . . Shielding Activations . | . . . Robots Disrupted . | . . . Combat Hostiles . | . . . Robots Corrupted . | . . . Combat Hostiles . | . . . Parts Fried 1 | . . 1 Impact Corruptions . | . . . Robots Melted . | . . . Combat Hostiles . | . . . Parts Melted 2 | . 2 . Heat Transferred 851 | . 592 259 Parts Sabotaged . | . . . Parts Stolen . | . . . Parts Stripped . | . . . Power Chain Reactions 1 | . . 1 Alert | -11 -10 -9 ------- Run | Yrd Mat Mat Maximum Alert Level . | . . . Low Security (%) 100 | 100 100 100 Level 1 . | . . . Level 2 . | . . . Level 3 . | . . . Level 4 . | . . . Level 5 . | . . . High Security . | . . . Max Security . | . . . Peak Influence 102 | . 102 92 Initial 7 | . . 7 Average 29 | . 35 25 Influence Increases 340 | . 168 172 Destroy 0b10 Robot/C 200 | . 100 100 Destroy 0b10 Robot/NC 15 | . 10 5 Destroy Leader 44 | . 22 22 Successful Hack 12 | . 6 6 Disable Machine 9 | . . 9 Lose Combat Pursuer 60 | . 30 30 Influence Decreases 248 | . 146 102 Entered New Map 15 | . . 15 Time Decay 233 | . 146 87 Squads Dispatched . | . . . Investigation . | . . . Extermination . | . . . Reinforcement . | . . . Assault . | . . . Garrison . | . . . Intercept . | . . . Searches Triggered . | . . . Construction Impeded . | . . . Haulers Reinforced . | . . . Active Scanning Responses . | . . . Cargo Convoy Interrupts . | . . . Stealth | -11 -10 -9 --------- Run | Yrd Mat Mat Distress Signals 2 | . . 2 Communications Jammed . | . . . Distress Signals . | . . . Times Spotted 21 | . 11 10 Peak Tracking Total 4 | . 4 4 Tactical Retreats 2 | . 1 1 Traps | -11 -10 -9 ------- Run | Yrd Mat Mat Traps Triggered 1 | . 1 . Indirectly . | . . . Trap Hack Attempts . | . . . Triggered . | . . . Disarmed . | . . . Reprogrammed . | . . . Reused . | . . . Traps Extracted . | . . . Installed . | . . . Triggered . | . . . Machines | -11 -10 -9 ---------- Run | Yrd Mat Mat Machines Disabled 1 | . . 1 Max in Single Turn 1 | . . 1 Machines Repaired . | . . . Machines Dismantled . | . . . Machines Sabotaged . | . . . Overloaded Fab Kills . | . . . Hacking | -11 -10 -9 --------- Run | Yrd Mat Mat Machines Accessed 5 | . 2 3 Terminals 2 | . 1 1 Fabricators . | . . . Repair Stations 2 | . 1 1 Recycling Units 1 | . . 1 Scanalyzers . | . . . Garrison Access . | . . . Total Hacks 10 | . 5 5 Successful 10 | . 5 5 Failed . | . . . Catastrophic . | . . . Database Lockouts . | . . . Manual . | . . . Terminals 5 | . 3 2 Fabricators . | . . . Repair Stations 4 | . 2 2 Recycling Units 1 | . . 1 Scanalyzers . | . . . Garrison Access . | . . . Terminal Hacks 5 | . 3 2 Record 2 | . 1 1 Hauler Manifests 1 | . 1 . Registered Components 2 | . 1 1 Fabricator Hacks . | . . . Repair Station Hacks 4 | . 2 2 Scan Component 2 | . 1 1 Repair 2 | . 1 1 Recycling Unit Hacks 1 | . . 1 Retrieve Components 1 | . . 1 Scanalyzer . | . . . Garrison Access Hacks . | . . . Unauthorized Hacks . | . . . Terminals . | . . . Fabricators . | . . . Repair Stations . | . . . Recycling Units . | . . . Scanalyzers . | . . . Garrison Access . | . . . Data Cores Recovered . | . . . Used . | . . . Hacking Detections 2 | . 1 1 Full Trace Events . | . . . Feedback Events . | . . . Feedback Blocked . | . . . Robot Schematics Acquired . | . . . Robots Built . | . . . Authchips . | . . . Time . | . . . Total Robot Build Rating . | . . . Part Schematics Acquired . | . . . Parts Built . | . . . Authchips . | . . . Time . | . . . Total Part Build Rating . | . . . Parts Repaired 2 | . 1 1 Time 52 | . 26 26 Parts Recycled . | . . . Recycled Matter . | . . . Retrieved Matter . | . . . Retrieved Components 2 | . . 2 Parts Scanalyzed . | . . . Part Schematics Acquired . | . . . Parts Damaged . | . . . Bothacking | -11 -10 -9 ------------ Run | Yrd Mat Mat Used RIF Installer . | . . . Robots Hacked . | . . . Non-combat . | . . . Combat . | . . . Robot Hacks Applied . | . . . Relay Couplers Released . | . . . Fabnet Peak Effective % . | . . . Robots Rewired . | . . . Allies Hacked . | . . . Hacks Repelled . | . . . Allies | -11 -10 -9 -------- Run | Yrd Mat Mat Total Allies . | . . . Largest Group . | . . . Highest-Rated Group . | . . . Highest-Rated Ally . | . . . Total Orders . | . . . Ally Attacks . | . . . Total Damage . | . . . Kills . | . . . Allies Corrupted . | . . . Allies Melted . | . . . Intel | -11 -10 -9 ------- Run | Yrd Mat Mat Active Infowar (turns) 433 | . 135 298 Sensors 433 | . 135 298 Robot Analysis Total . | . . . Derelict Logs Recovered . | . . . Drone Launches . | . . . Drone Recoveries . | . . . Exploration | -11 -10 -9 ------------- Run | Yrd Mat Mat Turns Passed 808 | 63 447 298 Spaces Moved 615 | 57 387 171 Core 21 | 21 . . Treads . | . . . Legs . | . . . Wheels 594 | 36 387 171 Hover . | . . . Flight . | . . . Fastest Speed 50 | 50 90 80 Average Speed 86 | 75 90 80 Slowest Speed 100 | 90 100 90 Overloaded Moves . | . . . Propulsion Burnouts . | . . . Robots Hopped . | . . . Potential Cave-ins . | . . . Cave-ins Triggered . | . . . Exploration Rate (%) 27 | 3 65 14 Regions Visited 2 Branch Regions . Pre-discovered Areas . | . . . Known Exits Taken . | . . . Unknown Exits Taken 2 | 1 1 . Scrap Searched . | . . . Spaces Dug . | . . . Terrain Destroyed . | . . . Melee . | . . . Projectile . | . . . AOE . | . . . Terrain Rammed . | . . . Walls Destroyed . | . . . Machines Disabled . | . . . Actions | -11 -10 -9 --------- Run | Yrd Mat Mat Total 838 | 76 453 309 Wait 154 | 7 38 109 Move 613 | 56 386 171 Hop . | . . . Pick Up 20 | 7 6 7 Fast Attach . | . . . Attach 15 | 6 3 6 Detach 4 | . 1 3 Swap 1 | . . 1 Drop 2 | . 1 1 Fire 29 | . 18 11 Melee . | . . . Ram . | . . . Kick . | . . . Crush . | . . . Escape Stasis . | . . . Rewire . | . . . Trap . | . . . Miscellaneous . | . . . Route ------- -11/Scrapyard -10/Materials (discovered 2 exits: *Mat / [*Min]) -9/Materials History --------- Turn | Location | Event 5 | -11/Scrapyard | Discovered new exit (range 16) 64 | -11/Scrapyard | Entered Materials 180 | -10/Materials | Discovered new exit (range 16) 292 | -10/Materials | Repaired Wheel 316 | -10/Materials | Build established: Mutant 393 | -10/Materials | Discovered new exit (range 16) 511 | -10/Materials | Entered another Materials area 511 | -9/Materials | Evolved 2 slots: Utility x1, Weapon x1 580 | -9/Materials | Repaired Med. Laser 809 | -9/Materials | Self-destructed Last Messages --------------- Retrieving component inventory records... Found 10 registered component stockpiles: GSMVMBQCEQ: Sml. Battery C9ZXIO2L8T: EM Shotgun A8MXHGV80N: Hrd. Light Armor Plating 0YVFKMSDYY: Shield Generator HN2Z66FJ07: Field Recycling Unit ZADAZYXXG7: Hcp. Storage Unit C7UV48EURV: Sensor Array ISKH9668AS: Lgt. Assault Rifle 8B7WR9037W: Shield Generator JW5MU9IUUA: Hcp. Battery Downloaded coordinate data. Connecting with Terminal... G-47 Trooper suffers critical hit (Burn). G-47 Trooper destroyed. R-06 Scavenger collects Aluminum Leg. G-34 Mercenary destroyed. Critical hit (Burn: +37). Acquired 28 matter. Map ----- +----------------------------------------------------+ | ?????????????????????????????????????????????????? | | ?????????????????????????????????????????????????? | | ?????????????????????????????????????????????????? | | ?????????????????????????????????????????????????? | | ?????????????????????????????????????????????????? | | ?????????????????????????????????????????????????? | | ?!???????????????????????????????????????????????? | | ?????????????????????????????????????????????????? | | ?????????????????????????????????????????????????? | | ?????????????????????????????????????????????????? | | ?????????????????????????????????????????????????? | | ????????!????????????????????????????????????????? | | ?????????????????????????????????????????????????? | | ?????????????????!???????????????????????????????? | | ?????????????????????????????????????????????????? | | ?????????????????????????????????????????????????? | | ?????????????????????????????????????????????????? | | ?????????????????????????????????????????????????? | | ?????????????????????????????????????????????????? | | ?????????????????????????????????????????????????? | | ???????????????????????????????????############### | | ?????????????????????????????????? # | | ???????????????????????????#?????"" # """ """ | | ??????????????????????????%#??#""""" # """ """ | | ????????????????????######+#??#""""" # """ """ | | ?????????????????#### Y @%#??#""""" # | | ?????????????????? + "T"!#??# """ # | | ????????????????????# r#???? # | | ????????????????????# " #?????? ?# | | ????????????????????# ""r#########+########+#### | | ????????????????????# "" # | | ????????????????????# """ + | | ????????????????????# t"" # | | ????????????????????# """ # ######### | | ????????????????????# """ #"" # # | | ????????????????????# """ # + # | | ????????????????????# " # # # " | | ????????????????????# # # # " | | ????????????????????######## #? # " | | ???????????????????????????# """"""" #? # " | | ???????????????????????????# """"""" #?? # " | | ???????????????????????????# """"""" #??#### | | ???????????????????????????# """"""" #?????##+ | | ???????????????????????????# """"""" #??????# | | ???????????????????????????# ##????## | | ???????????????????????????# ###### | | ???????????????????????????# " | | ???????????????????????????# #######+## ### | | ??????????????????????????????????????## ### #?## | | ???????????????????????????????????????# #?# #??# | +----------------------------------------------------+ Best States ------------- Heat Dissipation 50 Energy Generation 10 Energy Capacity 125 Matter Stores 300 Matter Capacity 300 Sight Range 16 Robot Scan Range 14 Terrain Scan Density 10 Additional Mass Support 6 Resistance: KI 20 Resistance: TH 20 Resistance: EX 20 Resistance: EM 20 Resistance: I 20 Resistance: S 20 Resistance: P 20 Evasion (%) 50 Targeting Accuracy 6 Offensive Hacking 10 Item Schematics ----------------- None Robot Schematics ------------------ None Fabricated ------------ Nothing Repaired ---------- Wheel | 65% | -10/Materials Med. Laser | 25% | -9/Materials Alien Tech Used ----------------- None Achievements -------------- None Challenges ------------ None Game ------ Seed DisassembledCarbideBarrier Manual? 0 Play Time 00:12:34 Cumulative 5.7 hours Start 2025.09.16 @ 09:53:04 End 2025.09.16 @ 10:02:48 Sessions 1 Manual Loads 0 Difficulty Adventurer Special Mode None Game No. 7 Rogue 0 Adventurer 7 Explorer 0 Win Type - Total 0 Types 0/0/0/0/0/0/0/0/0/0 Lore% 4 Gallery% 8 Achievement% 11 Wizard Run 0 Options --------- Layout 1 ASCII 0 Keyboard 0 Movement Mouse Keybinds 0 Fullscreen 1 Font 32/SmallcapsGlow Map View 50x35 Zoom Use 0% Tactical HUD 0 Map Filters NONE Filters NONE Steam 1 RUN: 021b2e8a-d018-4fe0-a1c3-0547f985288a